bitfinex-derivatives/quotes_BTCF0:USTF0_20210111
["timestamp","ask_amount","ask_price","bid_price","bid_amount"]
[1610398858841,0.06305655,33574.0,33543.0,6.4546]
[1610398859039,0.06305655,33574.0,33543.0,4.9546]
[1610398859437,0.06305655,33574.0,33573.0,0.13632608]
[1610398859637,0.06305655,33574.0,33535.0,1.0]
[1610398859839,0.14041655,33574.0,33551.0,4.1139]
[1610398861536,0.14041655,33574.0,33573.0,0.13632608]
[1610398861736,0.14041655,33574.0,33541.0,1.0]
[1610398862535,0.14041655,33574.0,33525.0,4.7125]
[1610398863435,0.13632608,33562.0,33551.0,0.13632608]
[1610398863637,0.14041655,33574.0,33551.0,0.13632608]
[1610398863836,0.06966,33562.0,33551.0,0.13632608]
[1610398864638,0.06966,33562.0,33561.0,6.0]
[1610398865538,0.20598608,33562.0,33561.0,6.0]
[1610398865940,0.06966,33562.0,33561.0,6.0]
[1610398866539,0.06966,33562.0,33551.0,0.13632608]
[1610398867541,0.06966,33562.0,33561.0,0.13632608]
[1610398867742,0.06966,33562.0,33527.0,1.0]
[1610398868541,0.06966,33562.0,33502.0,4.1529]
[1610398868742,3.375,33572.0,33502.0,4.1529]
[1610398868943,0.10339,33562.0,33502.0,4.1529]
[1610398869343,0.74399,33562.0,33502.0,4.1529]
[1610398869544,2.68926822,33562.0,33519.0,0.13632608]
[1610398869945,1.94578474,33560.0,33519.0,0.13632608]
[1610398870145,1.94578474,33560.0,33488.0,1.0]
[1610398870545,1.94885967,33555.0,33487.0,4.172]
[1610398870745,2.05172967,33555.0,33487.0,4.172]
[1610398871545,2.05172967,33555.0,33520.0,0.13632608]
[1610398871747,1.95114358,33553.0,33487.0,4.172]
[1610398872246,1.95114358,33553.0,33469.0,1.0]
[1610398872447,2.05530521,33555.0,33485.0,3.4545]
[1610398872847,1.95269801,33553.0,33485.0,3.4545]
[1610398873247,1.95287852,33551.0,33485.0,3.4545]
[1610398873649,0.13632608,33510.0,33507.0,0.13632608]
[1610398873849,0.10565,33522.0,33465.0,1.0]
[1610398874050,0.10565,33522.0,33472.0,3.6665]
[1610398874252,0.10565,33522.0,33480.0,0.09968]
[1610398874453,0.10565,33522.0,33472.0,3.75898]
[1610398874652,1.0,33510.0,33494.0,1.0]
[1610398874854,1.10444,33510.0,33509.0,0.02818075]
[1610398875053,1.10444,33510.0,33494.0,1.0]
[1610398876055,0.13632608,33495.0,33494.0,1.0]
[1610398876253,4.03356608,33495.0,33494.0,1.0]
[1610398876554,4.03356608,33495.0,33443.0,4.6495]
[1610398876755,0.08014,33495.0,33394.0,1.46165667]
[1610398876955,4.7498,33471.0,33406.0,3.4962]
[1610398877154,4.82652,33471.0,33406.0,3.4962]
[1610398878154,0.07672,33471.0,33465.0,0.13632608]
[1610398878356,1.95841139,33491.0,33465.0,0.13632608]
[1610398878357,1.78045785,33490.0,33465.0,0.13632608]
[1610398878560,1.78045785,33490.0,33470.0,6.0]
[1610398878757,1.78045785,33490.0,33470.0,6.10732]
[1610398878958,1.7793911,33500.0,33470.0,6.10732]
[1610398879358,1.63833915,33514.0,33470.0,6.10732]
[1610398879557,1.63833915,33514.0,33484.0,4.0255]
[1610398879757,1.95632545,33528.0,33485.0,1.5]
[1610398880057,1.95632545,33528.0,33527.0,0.13632608]
[1610398880260,1.0,33534.0,33527.0,0.13632608]
[1610398880661,0.65585845,33540.0,33527.0,0.13632608]
[1610398881064,0.2922,33540.0,33527.0,0.13632608]
[1610398882164,0.42852608,33540.0,33523.0,3.7207]
[1610398882363,0.2922,33540.0,33523.0,3.7207]
[1610398884263,0.2922,33540.0,33533.0,0.13632608]
[1610398884665,0.2922,33540.0,33539.0,6.0]
[1610398885364,0.2922,33540.0,33539.0,5.99818312]
[1610398885565,0.2922,33540.0,33539.0,6.0]
[1610398886365,0.42852608,33540.0,33539.0,6.0]
[1610398886865,0.2922,33540.0,33539.0,6.0]
[1610398887665,0.2922,33540.0,33533.0,0.13632608]
[1610398888268,0.2922,33540.0,33539.0,0.13632608]
[1610398888869,0.2922,33540.0,33528.0,0.06933]
[1610398890273,0.2922,33540.0,33539.0,0.13632608]
[1610398893271,0.2922,33540.0,33539.0,0.82122608]
[1610398895779,0.2922,33540.0,33539.0,6.82122608]
[1610398895983,0.2922,33540.0,33539.0,6.6849]
[1610398896479,0.2922,33540.0,33539.0,6.82122608]
[1610398896877,0.2922,33540.0,33539.0,6.13632608]
[1610398897279,0.0497,33540.0,33539.0,6.13632608]
[1610398898079,0.0497,33540.0,33539.0,10.83792608]
[1610398898278,0.0497,33540.0,33539.0,10.86792608]
[1610398899681,0.0497,33540.0,33539.0,4.86792608]
[1610398900682,0.0497,33540.0,33539.0,0.16632608]
[1610398900883,0.0497,33540.0,33539.0,0.03]
[1610398901988,4.324,33540.0,33539.0,0.03]
[1610398902188,4.324,33540.0,33474.0,1.0]
[1610398902388,1.8317159,33540.0,33474.0,1.0]
[1610398902588,3.9113,33517.0,33474.0,1.0]
[1610398902789,0.13632608,33484.0,33474.0,1.0]
[1610398903188,3.84742608,33484.0,33474.0,1.0]
[1610398903592,3.84742608,33484.0,33433.0,3.4505]
[1610398903792,3.95484608,33484.0,33433.0,3.4505]
[1610398904391,0.10742,33484.0,33434.0,1.5]
[1610398904591,0.10742,33484.0,33447.0,1.5]
[1610398904791,0.10742,33484.0,33483.0,0.13632608]
[1610398904991,0.85721893,33505.0,33484.0,1.5]
[1610398905192,1.9605089,33527.0,33484.0,1.5]
[1610398905391,1.9605089,33527.0,33483.0,3.76919608]
[1610398905592,2.67335642,33541.0,33483.0,3.76919608]
[1610398905593,1.95998093,33538.0,33483.0,3.76919608]
[1610398905792,1.95998093,33538.0,33483.0,3.63287]
[1610398905998,2.32160601,33539.0,33483.0,3.63287]
[1610398906303,0.36199,33539.0,33483.0,3.63287]
[1610398906503,1.5,33538.0,33483.0,0.11047]
[1610398906698,0.13632608,33486.0,33483.0,0.11047]
[1610398907304,0.07668,33507.0,33483.0,0.11047]
[1610398908097,4.8029,33531.0,33483.0,0.11047]
[1610398908297,1.96020204,33535.0,33483.0,0.11047]
[1610398908514,0.2822,33539.0,33484.0,3.8134]
[1610398908701,0.13632608,33510.0,33493.0,0.13632608]
[1610398908903,0.13632608,33510.0,33483.0,0.11047]
[1610398909500,0.24305608,33510.0,33483.0,0.11047]
[1610398909699,1.0,33491.0,33483.0,0.11047]
[1610398910101,1.0,33491.0,33474.0,1.0]
[1610398910798,1.0,33491.0,33490.0,0.13632608]
[1610398910997,0.7719,33491.0,33490.0,0.23051608]
[1610398911198,1.95952118,33532.0,33490.0,0.23051608]
[1610398911600,0.2822,33539.0,33490.0,0.23051608]
[1610398912798,0.2822,33539.0,33538.0,0.13632608]
[1610398913198,0.2822,33539.0,33522.0,0.10141]
[1610398913399,0.08546,33543.0,33522.0,0.10141]
[1610398914499,1.95781765,33559.0,33522.0,0.10141]
[1610398914699,0.13632608,33548.0,33528.0,0.13632608]
[1610398914899,0.22712608,33548.0,33528.0,0.13632608]
[1610398915300,1.0,33533.0,33522.0,0.10141]
[1610398915700,1.0,33533.0,33516.0,1.0]
[1610398916904,0.13632608,33517.0,33516.0,1.0]
[1610398917302,0.13632608,33517.0,33498.0,0.13632608]
[1610398917501,0.13632608,33517.0,33490.0,0.09419]
[1610398917701,0.13632608,33517.0,33483.0,3.7529]
[1610398918102,0.08655,33523.0,33484.0,1.5]
[1610398918302,0.07669,33534.0,33484.0,1.57494]
[1610398918502,1.95857888,33538.0,33499.0,5.9345]
[1610398918704,1.95857888,33538.0,33499.0,6.0168]
[1610398918904,0.0908,33548.0,33537.0,0.13632608]
[1610398919103,0.2861,33551.0,33537.0,0.13632608]
[1610398920906,0.2861,33551.0,33534.0,0.08357]
[1610398920907,0.2861,33551.0,33550.0,0.13632608]
[1610398922509,0.2861,33551.0,33534.0,0.08357]
[1610398922908,0.2861,33551.0,33550.0,0.13632608]
[1610398923311,0.2861,33551.0,33550.0,1.13632608]
[1610398923910,0.2861,33551.0,33550.0,1.0]
[1610398924710,1.53248142,33551.0,33550.0,0.72740706]
[1610398924912,1.53248142,33551.0,33550.0,0.13632608]
[1610398925110,0.2861,33551.0,33550.0,0.13632608]
[1610398925711,0.2861,33551.0,33534.0,0.08643]
[1610398927012,0.2861,33551.0,33550.0,0.13632608]
[1610398929518,0.2861,33551.0,33534.0,0.08643]
[1610398929721,0.2861,33551.0,33526.0,0.07287]
[1610398929921,0.2861,33551.0,33484.0,0.07494]
[1610398930120,1.24663656,33547.0,33484.0,0.07494]
[1610398930321,1.31975656,33547.0,33476.0,3.744]
[1610398930526,1.24713066,33541.0,33476.0,3.744]
[1610398930721,1.24713066,33541.0,33432.0,1.46409976]
[1610398930921,1.24713066,33541.0,29722.0,0.72733438]
[1610398930922,1.24736303,33530.0,33431.0,4.506]
[1610398931121,1.35301303,33530.0,33431.0,4.506]
[1610398931321,1.35301303,33530.0,33431.0,6.006]
[1610398931322,1.24762242,33521.0,33431.0,6.006]
[1610398931524,0.13632608,33495.0,33492.0,0.13632608]
[1610398932121,0.13632608,33495.0,33465.0,4.8452]
[1610398932523,1.24727962,33520.0,33465.0,4.8452]
[1610398932722,1.24727962,33520.0,33465.0,4.95165]
[1610398932921,1.24734235,33518.0,33465.0,4.95165]
[1610398933523,1.24734235,33518.0,33504.0,0.13632608]
[1610398933724,1.24734235,33518.0,33504.0,0.20511608]
[1610398933924,1.78184129,33525.0,33504.0,0.20511608]
[1610398933925,1.24680432,33522.0,33504.0,0.06879]
[1610398934325,4.5833,33518.0,33504.0,0.06879]
[1610398934523,4.6922,33518.0,33504.0,0.06879]
[1610398934724,1.5,33517.0,33494.0,0.11373]
[1610398935126,5.93931929,33518.0,33494.0,0.11373]
[1610398935127,1.24738753,33509.0,33494.0,0.11373]
[1610398935524,1.24724114,33508.0,33494.0,0.11373]
[1610398936126,1.24703821,33515.0,33494.0,0.11373]
[1610398936326,1.24673986,33521.0,33494.0,0.11373]
[1610398936827,1.24708296,33524.0,33494.0,0.11373]
[1610398937127,1.24711526,33523.0,33494.0,0.11373]
[1610398937528,1.24879106,33522.0,33494.0,0.11373]
[1610398937729,0.13632608,33508.0,33494.0,0.11373]
[1610398939531,0.13632608,33508.0,33467.0,4.8554]
[1610398939731,0.13632608,33495.0,33467.0,4.8554]
[1610398939930,0.13632608,33495.0,33465.0,0.10645]
[1610398940130,0.13632608,33495.0,33420.0,1.5]
[1610398940332,0.13632608,33495.0,33442.0,4.7551]
[1610398940532,0.13632608,33495.0,33442.0,4.82645]
[1610398941332,0.13632608,33495.0,33442.0,0.07135]
[1610398941732,0.13632608,33454.0,33447.0,0.13632608]
[1610398943038,0.13632608,33454.0,33442.0,0.07135]
[1610398943739,0.13632608,33443.0,33442.0,0.07135]
[1610398945645,0.13632608,33443.0,33420.0,0.13632608]
[1610398946849,0.13632608,33443.0,33404.0,4.342]
[1610398947652,4.9347,33454.0,33405.0,0.13632608]
[1610398948046,4.9347,33454.0,33405.0,0.24024608]
[1610398948245,4.9347,33454.0,33405.0,0.10392]
[1610398948451,1.5,33453.0,33405.0,0.10392]
[1610398948664,1.7711,33453.0,33405.0,0.10392]
[1610398948863,4.8154,33433.0,33405.0,0.10392]
[1610398949277,0.10245,33433.0,33405.0,0.10392]
[1610398949475,0.10245,33433.0,33340.0,1.55008376]
[1610398949657,3.9739,33406.0,33353.0,4.2972]
[1610398949859,0.09317,33413.0,33336.0,1.5518811]
[1610398950055,0.13632608,33337.0,33333.0,0.13632608]
[1610398950245,3.8673,33352.0,33336.0,0.10713]
[1610398950446,0.271,33412.0,33336.0,0.10713]
[1610398950847,4.5065,33375.0,33336.0,0.10713]
[1610398952449,0.07001,33397.0,33336.0,0.10713]
[1610398952648,4.6338,33355.0,33336.0,0.10713]
[1610398953951,0.13632608,33337.0,33336.0,0.10713]
[1610398955053,0.10107,33374.0,33251.0,1.62438694]
[1610398955251,3.5482,33329.0,33271.0,4.6041]
[1610398956052,0.13632608,33277.0,33274.0,0.13632608]
[1610398956253,6.0,33337.0,33274.0,0.13632608]
[1610398956454,3.5037,33302.0,33274.0,0.24430608]
[1610398956853,3.5037,33302.0,33274.0,0.10798]
[1610398957857,0.2834,33333.0,33274.0,0.10798]
[1610398958055,0.2834,33333.0,33287.0,0.13632608]
[1610398958258,0.2834,33333.0,33287.0,0.21401608]
[1610398958459,4.0853,33343.0,33287.0,0.21401608]
[1610398958856,0.2893,33357.0,33287.0,0.21401608]
[1610398959956,0.2893,33357.0,33356.0,0.13632608]
[1610398960158,0.17905,33359.0,33356.0,0.13632608]
[1610398960355,0.75895076,33402.0,33356.0,0.22815608]
[1610398960562,3.4106,33392.0,33356.0,0.22815608]
[1610398960760,3.4106,33392.0,33356.0,0.09183]
[1610398961162,3.51697,33392.0,33356.0,0.09183]
[1610398961657,3.51697,33392.0,33356.0,0.09000216]
[1610398962057,0.10637,33392.0,33356.0,0.09000216]
[1610398962257,1.0,33402.0,33360.0,0.13632608]
[1610398963159,0.09744,33404.0,33360.0,0.13632608]
[1610398963360,3.6981,33407.0,33360.0,0.13632608]
[1610398963562,3.6981,33407.0,33356.0,0.09000216]
[1610398964359,0.13632608,33357.0,33356.0,0.09000216]
[1610398964760,4.0884,33367.0,33356.0,0.09000216]
[1610398964961,0.07974,33386.0,33356.0,0.09000216]
[1610398965361,0.07974,33386.0,33233.0,1.5]
[1610398965562,0.75307183,33409.0,33349.0,4.592]
[1610398965761,0.75307183,33409.0,33349.0,4.68659]
[1610398965961,5.69087255,33426.0,33349.0,4.68659]
[1610398965962,0.75251844,33423.0,33349.0,4.68659]
[1610398966264,4.1849,33426.0,33349.0,4.68659]
[1610398967264,1.0,33424.0,33349.0,4.68659]
[1610398967466,1.08758,33424.0,33349.0,4.68659]
[1610398968663,1.0,33424.0,33349.0,4.68659]
[1610398969264,4.1849,33426.0,33349.0,4.68659]
[1610398969666,0.08611,33438.0,33349.0,4.68659]
[1610398969667,0.13632608,33364.0,33349.0,0.09459]
[1610398969865,0.06937,33429.0,33349.0,0.09459]
[1610398970065,4.065,33428.0,33349.0,0.09459]
[1610398970668,0.2782,33427.0,33349.0,0.09459]
[1610398970867,0.2782,33427.0,33338.0,3.8304]
[1610398971668,0.13632608,33405.0,33395.0,0.13632608]
[1610398972471,0.13632608,33405.0,33395.0,0.13450096]
[1610398972670,0.2782,33427.0,33395.0,0.13450096]
[1610398973071,0.2782,33427.0,33395.0,0.22013096]
[1610398973270,1.0,33421.0,33395.0,0.22013096]
[1610398973670,1.0,33421.0,33395.0,0.08563]
[1610398975272,1.0,33400.0,33395.0,0.08563]
[1610398975773,0.13632608,33396.0,33395.0,0.08563]
[1610398976576,0.13632608,33396.0,33349.0,5.028]
[1610398976775,0.13632608,33396.0,29772.0,0.39649814]
[1610398976776,0.13632608,33396.0,33248.0,1.62643367]
[1610398976976,4.2842,33387.0,33344.0,1.0]
[1610398977779,6.0,33396.0,33344.0,1.0]
[1610398977982,6.0,33396.0,33347.0,3.8196]
[1610398978578,5.40046,33396.0,33347.0,3.8196]
[1610398978777,5.11974,33396.0,33395.0,0.13632608]
[1610398978976,0.13632608,33410.0,33395.0,6.22776608]
[1610398979179,0.2896,33417.0,33395.0,0.22776608]
[1610398979378,0.2896,33417.0,33395.0,0.09144]
[1610398980780,0.2896,33417.0,33416.0,0.13632608]
[1610398980979,0.2896,33417.0,33416.0,0.24127608]
[1610398981181,0.2896,33417.0,33416.0,6.10495]
[1610398982683,0.2896,33417.0,33416.0,6.07495]
[1610398983082,0.2896,33417.0,33416.0,0.07495]
[1610398983282,0.42592608,33417.0,33416.0,0.07495]
[1610398983882,0.42592608,33417.0,33416.0,0.07312562]
[1610398985686,4.94272608,33417.0,33416.0,0.07312562]
[1610398985886,4.94272608,33417.0,33404.0,0.10487]
[1610398986086,4.8064,33417.0,33404.0,0.10487]
[1610398986284,0.2896,33417.0,33348.0,1.0]
[1610398986485,0.01,33397.0,33348.0,1.0]
[1610398986686,0.1048,33397.0,33348.0,1.0]
[1610398986888,4.8757,33386.0,33348.0,1.0]
[1610398987087,4.8757,33386.0,33317.0,3.5933]
[1610398987287,0.13632608,33345.0,33337.0,0.13632608]
[1610398987488,0.13632608,33345.0,33295.0,1.0]
[1610398987891,0.08186,33373.0,33295.0,1.0]
[1610398988089,0.08186,33373.0,33295.0,1.07105]
[1610398988888,4.6751,33389.0,33295.0,1.07105]
[1610398989197,4.6751,33389.0,33311.0,1.0]
[1610398989400,0.13632608,33378.0,33360.0,0.13632608]
[1610398989789,0.13632608,33378.0,33311.0,1.11081]
[1610398990790,0.7021,33378.0,33311.0,1.11081]
[1610398990989,0.0859,33383.0,33311.0,1.11081]
[1610398991189,0.0859,33383.0,33311.0,0.11081]
[1610398991590,4.9561,33384.0,33312.0,0.6441]
[1610398991790,4.9561,33384.0,33338.0,0.13632608]
[1610398991991,4.9561,33384.0,33338.0,0.20902608]
[1610398992190,4.9561,33384.0,33338.0,0.0727]
[1610398993891,4.9561,33384.0,33351.0,0.13632608]
[1610398994092,4.9561,33384.0,33351.0,0.22713608]
[1610398994291,4.9561,33384.0,33351.0,0.09081]
[1610398994495,0.06901,33390.0,33351.0,0.09081]
[1610398994694,3.5928,33362.0,33351.0,0.09081]
[1610398995193,3.6942,33362.0,33338.0,0.0727]
[1610398995893,0.13632608,33339.0,33338.0,0.0727]
[1610398996997,0.13632608,33339.0,33311.0,0.11081]
[1610398997194,0.13632608,33339.0,33295.0,0.07105]
[1610398997396,0.13632608,33339.0,33278.0,3.4498]
[1610398997796,0.13632608,33306.0,33278.0,3.4498]
[1610398997996,0.13632608,33306.0,33258.0,1.0]
[1610398998797,4.6019,33313.0,33258.0,1.0]
[1610398999000,4.6019,33313.0,33258.0,1.07742]
[1610398999198,4.6019,33313.0,33258.0,0.07742]
[1610398999898,0.13632608,33269.0,33266.0,0.13632608]
[1610399000099,4.6019,33313.0,33266.0,0.13632608]
[1610399000499,4.6019,33313.0,33266.0,0.22989608]
[1610399001102,1.0,33301.0,33284.0,1.0]
[1610399001905,0.13632608,33285.0,33284.0,1.13632608]
[1610399002120,0.13632608,33285.0,33268.0,5.0]
[1610399002337,5.10502608,33285.0,33268.0,3.8347]
[1610399002517,0.13632608,33285.0,33268.0,2.4244]
[1610399002716,3.6667,33267.0,33203.0,1.79693457]
[1610399002910,0.0898,33275.0,33203.0,1.79693457]
[1610399003110,0.0898,33275.0,33203.0,0.1096]
[1610399003308,4.5302,33257.0,33203.0,0.1096]
[1610399003918,0.13632608,33247.0,33237.0,0.13632608]
[1610399004123,0.09629,33266.0,33237.0,0.13632608]
[1610399004318,1.0,33276.0,33237.0,0.24618608]
[1610399004921,1.23489138,33313.0,33240.0,3.629]
[1610399005125,0.5945,33312.0,33240.0,3.629]
[1610399005304,0.69951,33312.0,33240.0,3.629]
[1610399005904,0.13632608,33266.0,33258.0,0.13632608]
[1610399006105,0.09801,33283.0,33258.0,0.13632608]
[1610399006303,0.09801,33283.0,33258.0,0.24019608]
[1610399007105,1.0,33308.0,33258.0,0.24019608]
[1610399007708,1.0,33308.0,33258.0,0.10387]
[1610399007906,0.13632608,33259.0,33258.0,0.10387]
[1610399009108,4.6533,33278.0,33258.0,0.10387]
[1610399010810,1.0,33269.0,33258.0,0.10387]
[1610399011211,1.0,33269.0,33238.0,0.2966]
[1610399011212,1.07803,33269.0,33238.0,0.2966]
[1610399011813,0.81053,33269.0,33238.0,0.2966]
[1610399012014,1.2321411,33313.0,33246.0,3.7091]
[1610399012213,1.2321411,33313.0,33295.0,0.13632608]
[1610399012414,1.23160004,33327.0,33295.0,0.10021]
[1610399012717,1.23086123,33330.0,33295.0,0.10021]
[1610399013116,1.23088771,33327.0,33295.0,0.10021]
[1610399013314,1.34269771,33327.0,33273.0,0.07009]
[1610399013516,1.23012087,33324.0,33273.0,0.07009]
[1610399013717,1.23017705,33322.0,33273.0,0.07009]
[1610399014116,1.2299791,33325.0,33273.0,0.07009]
[1610399014317,0.13632608,33289.0,33273.0,0.07009]
[1610399014517,0.11181,33327.0,33273.0,0.07009]
[1610399014518,0.09878,33310.0,33273.0,0.07009]
[1610399016321,0.09878,33310.0,33280.0,0.13632608]
[1610399016523,0.09878,33310.0,33280.0,0.23394608]
[1610399016925,0.09878,33310.0,33280.0,0.09762]
[1610399017725,0.11181,33327.0,33280.0,0.09762]
[1610399018325,1.0,33313.0,33280.0,0.09762]
[1610399018724,0.13632608,33292.0,33286.0,0.13632608]
[1610399018926,0.13632608,33292.0,33280.0,0.09762]
[1610399021533,0.13632608,33292.0,33273.0,0.07009]
[1610399021733,1.07878,33300.0,33246.0,0.07215]
[1610399022132,1.07878,33300.0,33241.0,3.8691]
[1610399022333,0.07878,33300.0,33246.0,0.10926]
[1610399024738,0.07878,33300.0,33277.0,0.13632608]
[1610399025138,0.07878,33300.0,33277.0,0.24657608]
[1610399025337,0.07878,33300.0,33277.0,0.11025]
[1610399026339,1.0,33292.0,33277.0,0.11025]
[1610399026739,0.13632608,33278.0,33277.0,0.11025]
[1610399026939,1.0,33292.0,33277.0,0.11025]
[1610399028340,0.07806,33309.0,33277.0,0.11025]
[1610399028541,0.0843,33338.0,33277.0,0.11025]
[1610399028740,0.0843,33338.0,33291.0,0.13632608]
[1610399029142,0.0843,33338.0,33291.0,0.21831608]
[1610399029341,1.22107757,33347.0,33291.0,0.21831608]
[1610399029547,1.22138948,33349.0,33291.0,0.21831608]
[1610399029757,1.2213934,33348.0,33291.0,0.21831608]
[1610399030043,2.8206034,33348.0,33291.0,0.08199]
[1610399030245,0.5831,33343.0,33291.0,0.08199]
[1610399030444,1.5,33342.0,33291.0,0.08199]
[1610399030844,1.22161143,33345.0,33291.0,0.08199]
[1610399031044,3.7955,33341.0,33291.0,0.0801594]
[1610399031244,0.13632608,33294.0,33291.0,0.0801594]
[1610399031644,0.08922,33304.0,33277.0,0.11025]
[1610399031844,0.08922,33304.0,33261.0,5.028]
[1610399032247,1.0,33297.0,33261.0,5.028]
[1610399034246,0.08705,33307.0,33261.0,5.028]
[1610399034446,0.08705,33307.0,33261.0,5.11012]
[1610399035246,0.13632608,33289.0,33286.0,0.13632608]
[1610399035847,0.13632608,33289.0,33261.0,5.11012]
[1610399037248,0.13632608,33289.0,33288.0,0.13632608]
[1610399037447,0.13632608,33289.0,33288.0,0.23781608]
[1610399037850,0.13632608,33289.0,33288.0,0.10149]
[1610399039651,0.13632608,33289.0,33261.0,0.08212]
[1610399039855,0.13632608,33289.0,33280.0,0.11286]
[1610399040054,0.13632608,33289.0,33271.0,0.09249]
[1610399040250,0.24522608,33289.0,33271.0,0.09249]
[1610399040953,0.24522608,33289.0,33271.0,0.09065762]
[1610399041151,0.24522608,33289.0,33246.0,0.10926]
[1610399041355,0.13632608,33263.0,33262.0,0.13632608]
[1610399041555,0.1089,33289.0,33262.0,0.13632608]
[1610399041757,0.1089,33289.0,33262.0,0.0921]
[1610399042154,0.11367,33297.0,33262.0,0.0921]
[1610399042356,1.23374366,33306.0,33262.0,0.0921]
[1610399042552,1.23573362,33308.0,33275.0,4.635]
[1610399042758,1.23573362,33308.0,33275.0,4.71427]
[1610399042953,0.98855635,33313.0,33275.0,4.71427]
[1610399043253,1.08670264,33315.0,33275.0,4.71427]
[1610399043454,0.79750264,33315.0,33275.0,4.71427]
[1610399043653,1.23797001,33322.0,33275.0,4.71427]
[1610399043955,1.23797001,33322.0,33321.0,0.13632608]
[1610399044157,1.23746481,33330.0,33321.0,0.13632608]
[1610399044556,1.02443178,33334.0,33321.0,0.13632608]
[1610399044955,1.02433669,33342.0,33321.0,0.13632608]
[1610399045454,1.02422388,33347.0,33321.0,0.13632608]
[1610399045654,1.56204103,33364.0,33315.0,0.07507]
[1610399045854,1.56204103,33364.0,33339.0,4.6055]
[1610399046058,2.66214557,33395.0,33339.0,4.70841]
[1610399046255,2.66214557,33395.0,33394.0,0.13632608]
[1610399046455,2.6656569,33401.0,33388.0,0.07446]
[1610399046855,2.66491185,33408.0,33388.0,0.07446]
[1610399047055,2.66441828,33411.0,33388.0,0.09668]
[1610399047257,2.66415449,33414.0,33388.0,0.09668]
[1610399047656,2.66487701,33417.0,33388.0,0.09668]
[1610399047958,2.66468184,33416.0,33388.0,0.09668]
[1610399048157,2.66468184,33416.0,33402.0,0.13632608]
[1610399048358,2.7716169,33418.0,33402.0,0.13632608]
[1610399048559,2.7716169,33418.0,33398.0,0.09351]
[1610399048758,0.10695,33418.0,33398.0,0.09351]
[1610399049459,0.10695,33418.0,33370.0,4.5101]
[1610399050061,2.77218453,33418.0,33370.0,4.5101]
[1610399050262,0.13632608,33412.0,33402.0,0.13632608]
[1610399050662,2.66791591,33417.0,33388.0,4.8411]
[1610399050861,0.10695,33418.0,33388.0,4.92642]
[1610399052062,1.0,33424.0,33388.0,4.92642]
[1610399052262,2.66393066,33428.0,33416.0,0.13632608]
[1610399052463,2.66381317,33432.0,33416.0,0.13632608]
[1610399052864,2.66229665,33434.0,33403.0,0.10798]
[1610399053063,2.66215932,33435.0,33403.0,0.10798]
[1610399053864,3.66030103,33437.0,33403.0,0.10798]
[1610399054065,1.0,33437.0,33403.0,0.10798]
[1610399054265,2.66009366,33442.0,33403.0,0.10798]
[1610399054466,2.65778045,33444.0,33403.0,0.10798]
[1610399054665,0.13632608,33425.0,33406.0,0.13632608]
[1610399054865,0.24355608,33425.0,33406.0,0.13632608]
[1610399055565,0.10723,33425.0,33406.0,0.13632608]
[1610399055965,0.10723,33425.0,33402.0,3.5609]
[1610399056668,0.10723,33425.0,33413.0,0.13632608]
[1610399057067,0.10723,33425.0,33402.0,3.5609]
[1610399057268,0.10723,33425.0,33396.0,0.09819]
[1610399058870,0.13632608,33397.0,29798.0,0.008]
[1610399059071,0.21713608,33397.0,33370.0,3.4857]
[1610399060671,0.21713608,33397.0,33352.0,0.08489]
[1610399060874,0.13632608,33371.0,33355.0,0.13632608]
[1610399061272,0.13632608,33371.0,33352.0,0.08489]
[1610399061673,0.13632608,33371.0,33343.0,4.5866]
[1610399062272,0.13632608,33371.0,33339.0,0.10291]
[1610399062473,0.13632608,33371.0,33316.0,0.2943]
[1610399062676,0.13632608,33371.0,33307.0,4.3831]
[1610399062872,1.5,33371.0,33268.0,1.79778534]
[1610399063073,4.3974,33351.0,33283.0,4.6868]
[1610399063274,4.48998,33351.0,33283.0,4.6868]
[1610399063474,4.48998,33351.0,33250.0,2.25902209]
[1610399063475,0.13632608,33284.0,33257.0,0.13632608]
[1610399063674,0.08205,33295.0,33249.0,1.815239]
[1610399063876,3.692,33288.0,33249.0,0.0792]
[1610399064474,3.7662,33288.0,33249.0,0.0792]
[1610399065073,3.7662,33288.0,33226.0,4.4091]
[1610399065473,0.13632608,33230.0,33226.0,4.4091]
[1610399065676,0.13632608,33230.0,33216.0,0.13632608]
[1610399066080,0.11083,33253.0,33216.0,0.13632608]
[1610399066276,0.11083,33253.0,33216.0,0.22698608]
[1610399066479,0.11083,33253.0,33221.0,3.4105]
[1610399066678,0.98939785,33294.0,33222.0,1.5]
[1610399066876,0.98934765,33301.0,33216.0,0.09066]
[1610399067077,0.11176,33306.0,33230.0,4.6262]
[1610399067277,0.11176,33306.0,33230.0,4.7304]
[1610399067478,0.13632608,33274.0,33266.0,0.13632608]
[1610399067678,0.13632608,33274.0,33230.0,0.1042]
[1610399067878,0.13632608,33274.0,33241.0,4.3056]
[1610399068076,0.13632608,33274.0,33241.0,4.37827]
[1610399068678,3.7681,33299.0,33241.0,4.37827]
[1610399068879,3.7681,33299.0,33241.0,0.07267]
[1610399069078,0.11176,33306.0,33241.0,0.07267]
[1610399069281,0.98887586,33309.0,33241.0,0.07267]
[1610399069479,0.98914423,33310.0,33273.0,0.13632608]
[1610399069679,0.98914423,33310.0,33273.0,0.0709]
[1610399069880,0.98905563,33304.0,33273.0,0.0709]
[1610399070078,1.07404563,33304.0,33273.0,0.0709]
[1610399070280,1.0,33277.0,33273.0,0.0709]
[1610399070679,1.0,33277.0,33273.0,0.06906843]
[1610399071081,0.8019,33277.0,33273.0,0.06906843]
[1610399071282,0.519,33303.0,33273.0,0.06906843]
[1610399073083,0.519,33303.0,33263.0,0.10459]
[1610399073283,1.0,33297.0,33263.0,0.10459]
[1610399073483,1.07335,33297.0,33263.0,0.10459]
[1610399073984,0.13632608,33271.0,33263.0,0.10459]
[1610399074384,1.07335,33297.0,33263.0,0.10459]
[1610399074984,1.07335,33297.0,33254.0,0.13632608]